[Event "*** SCC Grand Prix: Titled Tuesday Blitz"]
[Site "Chess.com"]
[Date "2020.06.02"]
[Round "10"]
[White "TST2014"]
[Black "northridgehawk"]
[Result "0-1"]
[WhiteElo "2500"]
[BlackElo "2332"]
[TimeControl "180+1"]
[EndTime "11:58:38 PDT"]
[Termination "northridgehawk won on time"]

1. d4 {[%clk 0:03:00.9]} 1... Nf6 {[%clk 0:02:56.4]} 2. c4 {[%clk 0:03:00.9]}
2... g6 {[%clk 0:02:57.3]} 3. Nf3 {[%clk 0:03:01]} 3... Bg7 {[%clk 0:02:57.1]}
4. Nc3 {[%clk 0:03:01.7]} 4... d5 {[%clk 0:02:57.7]} 5. Bg5 {[%clk 0:03:01.5]}
5... Ne4 {[%clk 0:02:53.5]} 6. Bh4 {[%clk 0:03:00.9]} 6... Nxc3 {[%clk
0:02:53.3]} 7. bxc3 {[%clk 0:03:01.8]} 7... dxc4 {[%clk 0:02:54.2]} 8. Qa4+
{[%clk 0:03:01.5]} 8... c6 {[%clk 0:02:49.2]} 9. Qxc4 {[%clk 0:02:59.6]} 9...
O-O {[%clk 0:02:49.1]} 10. e3 {[%clk 0:02:58.1]} 10... Nd7 {[%clk 0:02:46.6]}
11. Be2 {[%clk 0:02:51.9]} 11... Nb6 {[%clk 0:02:46.2]} 12. Qb4 {[%clk
0:02:51.7]} 12... Re8 {[%clk 0:02:46]} 13. O-O {[%clk 0:02:47.8]} 13... Be6
{[%clk 0:02:38.1]} 14. c4 {[%clk 0:02:45.6]} 14... a5 {[%clk 0:02:34.4]} 15. Qb3
{[%clk 0:02:40.3]} 15... a4 {[%clk 0:02:21.5]} 16. Qb4 {[%clk 0:02:38.9]} 16...
a3 {[%clk 0:02:07.5]} 17. Rab1 {[%clk 0:02:37.2]} 17... Nd7 {[%clk 0:02:00.5]}
18. Qxb7 {[%clk 0:02:35.2]} 18... c5 {[%clk 0:01:46.8]} 19. Rfc1 {[%clk
0:02:14.2]} 19... cxd4 {[%clk 0:01:46]} 20. exd4 {[%clk 0:02:14]} 20... Bf5
{[%clk 0:01:42.3]} 21. Rb3 {[%clk 0:02:09.2]} 21... Qa5 {[%clk 0:01:26.7]} 22.
Qb5 {[%clk 0:01:59.2]} 22... Qa7 {[%clk 0:01:19.7]} 23. c5 {[%clk 0:01:42.5]}
23... Be6 {[%clk 0:01:09.3]} 24. c6 {[%clk 0:01:05.3]} 24... Reb8 {[%clk
0:00:55.4]} 25. Qd3 {[%clk 0:00:30.2]} 25... Bxb3 {[%clk 0:00:53.7]} 26. axb3
{[%clk 0:00:27.8]} 26... a2 {[%clk 0:00:49.2]} 27. Ra1 {[%clk 0:00:26.6]} 27...
Nc5 {[%clk 0:00:46.5]} 28. Rxa2 {[%clk 0:00:19.9]} 28... Nxd3 {[%clk 0:00:29.5]}
29. Rxa7 {[%clk 0:00:18.6]} 29... Rxa7 {[%clk 0:00:30.4]} 30. Bxd3 {[%clk
0:00:19.2]} 30... Ra1+ {[%clk 0:00:30.2]} 31. Bf1 {[%clk 0:00:19]} 31... Rxb3
{[%clk 0:00:30]} 32. h3 {[%clk 0:00:17]} 32... Rc3 {[%clk 0:00:29.1]} 33. d5
{[%clk 0:00:16.9]} 33... Rcc1 {[%clk 0:00:25.8]} 34. Nd2 {[%clk 0:00:16.9]}
34... Bh6 {[%clk 0:00:20.5]} 35. Bxe7 {[%clk 0:00:14.9]} 35... Bxd2 {[%clk
0:00:20.2]} 36. d6 {[%clk 0:00:15.2]} 36... Rxc6 {[%clk 0:00:19.4]} 37. d7
{[%clk 0:00:13]} 37... Ba5 {[%clk 0:00:19.6]} 38. d8=Q+ {[%clk 0:00:12.3]} 38...
Bxd8 {[%clk 0:00:19.2]} 39. Bxd8 {[%clk 0:00:13.2]} 39... Rcc1 {[%clk
0:00:19.6]} 40. Bf6 {[%clk 0:00:14.1]} 40... Rxf1+ {[%clk 0:00:20.1]} 41. Kh2
{[%clk 0:00:14.8]} 41... Ra2 {[%clk 0:00:19.4]} 42. f3 {[%clk 0:00:14.5]} 42...
Rff2 {[%clk 0:00:17.8]} 43. Kg3 {[%clk 0:00:14.9]} 43... Rxg2+ {[%clk
0:00:17.6]} 44. Kf4 {[%clk 0:00:15.4]} 44... Rgc2 {[%clk 0:00:18.1]} 0-1

[Event "*** SCC Grand Prix: Titled Tuesday Blitz"]
[Site "Chess.com"]
[Date "2020.06.02"]
[Round "10"]
[White "BogdanBelyakov89"]
[Black "oneshot007"]
[Result "1-0"]
[WhiteElo "2631"]
[BlackElo "2432"]
[TimeControl "180+1"]
[EndTime "11:58:38 PDT"]
[Termination "BogdanBelyakov89 won by checkmate"]

1. e4 {[%clk 0:03:00.9]} 1... c5 {[%clk 0:03:00.2]} 2. c3 {[%clk 0:02:35.8]}
2... f5 {[%clk 0:02:52]} 3. exf5 {[%clk 0:02:34.8]} 3... Nf6 {[%clk 0:02:44.3]}
4. Nf3 {[%clk 0:02:32.7]} 4... d5 {[%clk 0:02:43.7]} 5. d4 {[%clk 0:02:32.6]}
5... c4 {[%clk 0:02:36.2]} 6. b3 {[%clk 0:02:30.9]} 6... cxb3 {[%clk 0:02:35.2]}
7. Bd3 {[%clk 0:02:29.1]} 7... bxa2 {[%clk 0:02:26.8]} 8. Rxa2 {[%clk 0:02:30]}
8... Ne4 {[%clk 0:02:12.8]} 9. g4 {[%clk 0:02:21.5]} 9... e6 {[%clk 0:02:07.8]}
10. Ne5 {[%clk 0:01:41.3]} 10... Nc6 {[%clk 0:02:01.3]} 11. Qa4 {[%clk
0:01:27.2]} 11... Bd7 {[%clk 0:01:37.6]} 12. fxe6 {[%clk 0:01:25.3]} 12... Nxe5
{[%clk 0:01:36.1]} 13. exd7+ {[%clk 0:01:25.3]} 13... Nxd7 {[%clk 0:01:35.4]}
14. Qb5 {[%clk 0:00:54.5]} 14... Be7 {[%clk 0:01:03]} 15. Qxd5 {[%clk
0:00:52.3]} 15... Nef6 {[%clk 0:00:57.6]} 16. Qe6 {[%clk 0:00:52.2]} 16... Nf8
{[%clk 0:00:51.4]} 17. Bb5+ {[%clk 0:00:50.2]} 17... N6d7 {[%clk 0:00:51.4]} 18.
Qe4 {[%clk 0:00:45.7]} 18... Qb6 {[%clk 0:00:48.3]} 19. Na3 {[%clk 0:00:37.4]}
19... O-O-O {[%clk 0:00:34.7]} 20. Be2 {[%clk 0:00:30.4]} 20... Ng6 {[%clk
0:00:29.2]} 21. Rb2 {[%clk 0:00:29.2]} 21... Bxa3 {[%clk 0:00:25.6]} 22. Rxb6
{[%clk 0:00:28.5]} 22... Nxb6 {[%clk 0:00:23]} 23. Bxa3 {[%clk 0:00:28.4]} 23...
Rhe8 {[%clk 0:00:21]} 24. Qf3 {[%clk 0:00:26]} 24... Nc4 {[%clk 0:00:19.7]} 25.
Bc1 {[%clk 0:00:21.4]} 25... Re7 {[%clk 0:00:17.8]} 26. O-O {[%clk 0:00:20.7]}
26... Nd6 {[%clk 0:00:18.3]} 27. Bd3 {[%clk 0:00:20.4]} 27... Rf7 {[%clk
0:00:18]} 28. Qg2 {[%clk 0:00:20.2]} 28... Rdf8 {[%clk 0:00:18.2]} 29. Bxg6
{[%clk 0:00:16.2]} 29... hxg6 {[%clk 0:00:19.1]} 30. f4 {[%clk 0:00:16.4]} 30...
g5 {[%clk 0:00:18.8]} 31. f5 {[%clk 0:00:16.3]} 31... g6 {[%clk 0:00:18.8]} 32.
Qd5 {[%clk 0:00:16.2]} 32... Kc7 {[%clk 0:00:16.2]} 33. Bxg5 {[%clk 0:00:15.8]}
33... gxf5 {[%clk 0:00:16.2]} 34. Bf4 {[%clk 0:00:16.1]} 34... Rd8 {[%clk
0:00:16.4]} 35. g5 {[%clk 0:00:16]} 35... Rg7 {[%clk 0:00:16.5]} 36. h4 {[%clk
0:00:15.5]} 36... Rg6 {[%clk 0:00:15.4]} 37. h5 {[%clk 0:00:15.2]} 37... Rg7
{[%clk 0:00:16.3]} 38. g6 {[%clk 0:00:15.3]} 38... b6 {[%clk 0:00:15.1]} 39. Be5
{[%clk 0:00:15]} 39... Rgg8 {[%clk 0:00:15.2]} 40. g7 {[%clk 0:00:14.3]} 40...
Rd7 {[%clk 0:00:14.6]} 41. h6 {[%clk 0:00:14.3]} 41... Kd8 {[%clk 0:00:15.1]}
42. Bxd6 {[%clk 0:00:14.2]} 42... Ke8 {[%clk 0:00:13.9]} 43. Qxg8# {[%clk
0:00:13.7]} 1-0

[Event "*** SCC Grand Prix: Titled Tuesday Blitz"]
[Site "Chess.com"]
[Date "2020.06.02"]
[Round "10"]
[White "Sanroto99"]
[Black "kleopl"]
[Result "1-0"]
[WhiteElo "2349"]
[BlackElo "2434"]
[TimeControl "180+1"]
[EndTime "11:58:40 PDT"]
[Termination "Sanroto99 won by resignation"]

1. d4 {[%clk 0:03:00.9]} 1... Nf6 {[%clk 0:02:57.9]} 2. c4 {[%clk 0:03:00.3]}
2... g6 {[%clk 0:02:58.2]} 3. Nc3 {[%clk 0:03:00.6]} 3... d5 {[%clk 0:02:57.6]}
4. cxd5 {[%clk 0:02:58.9]} 4... Nxd5 {[%clk 0:02:58.5]} 5. e4 {[%clk 0:02:58.9]}
5... Nxc3 {[%clk 0:02:58.7]} 6. bxc3 {[%clk 0:02:59.5]} 6... c5 {[%clk
0:02:59.4]} 7. Nf3 {[%clk 0:02:59.4]} 7... Bg7 {[%clk 0:03:00]} 8. Be3 {[%clk
0:02:59.4]} 8... O-O {[%clk 0:02:59.8]} 9. Qd2 {[%clk 0:02:57.9]} 9... Nc6
{[%clk 0:02:59.6]} 10. Rc1 {[%clk 0:02:57.9]} 10... b6 {[%clk 0:02:55.6]} 11. d5
{[%clk 0:02:57.6]} 11... Na5 {[%clk 0:02:52.9]} 12. Be2 {[%clk 0:02:48.5]} 12...
e5 {[%clk 0:02:52.7]} 13. O-O {[%clk 0:02:38.8]} 13... Nb7 {[%clk 0:02:52.5]}
14. Bh6 {[%clk 0:02:35]} 14... f6 {[%clk 0:02:52.1]} 15. Bxg7 {[%clk 0:02:31.7]}
15... Kxg7 {[%clk 0:02:53]} 16. Ne1 {[%clk 0:02:19.4]} 16... Nd6 {[%clk
0:02:52.8]} 17. Bd3 {[%clk 0:02:17.2]} 17... Qe7 {[%clk 0:02:44.9]} 18. Nc2
{[%clk 0:02:10.3]} 18... Bd7 {[%clk 0:02:42.6]} 19. Ne3 {[%clk 0:02:01.4]} 19...
Kh8 {[%clk 0:02:37.6]} 20. Nc4 {[%clk 0:01:50.8]} 20... Nxc4 {[%clk 0:02:32]}
21. Bxc4 {[%clk 0:01:51.7]} 21... Qd6 {[%clk 0:02:32.2]} 22. f4 {[%clk
0:01:48.2]} 22... Rae8 {[%clk 0:02:28.3]} 23. fxe5 {[%clk 0:01:44.9]} 23... Qxe5
{[%clk 0:02:24.5]} 24. Rce1 {[%clk 0:01:37.4]} 24... Kg7 {[%clk 0:02:23.5]} 25.
Bd3 {[%clk 0:01:31.7]} 25... Qd6 {[%clk 0:02:18.2]} 26. c4 {[%clk 0:01:31.7]}
26... Qe5 {[%clk 0:02:17.3]} 27. Qf2 {[%clk 0:01:23.6]} 27... Re7 {[%clk
0:02:12]} 28. Kh1 {[%clk 0:01:07]} 28... Qc3 {[%clk 0:02:11.1]} 29. Qc2 {[%clk
0:01:01.6]} 29... Qxc2 {[%clk 0:02:04.2]} 30. Bxc2 {[%clk 0:01:00.3]} 30... Rfe8
{[%clk 0:02:04.6]} 31. Rd1 {[%clk 0:00:51.5]} 31... Re5 {[%clk 0:02:03.3]} 32.
Kg1 {[%clk 0:00:49.9]} 32... Bg4 {[%clk 0:02:03.2]} 33. Rd2 {[%clk 0:00:46.4]}
33... Rf8 {[%clk 0:01:53.3]} 34. h3 {[%clk 0:00:39.9]} 34... Bd7 {[%clk
0:01:51.5]} 35. Rdf2 {[%clk 0:00:37.5]} 35... Re7 {[%clk 0:01:45.4]} 36. a4
{[%clk 0:00:35.8]} 36... Ref7 {[%clk 0:01:43.5]} 37. Re1 {[%clk 0:00:32.1]}
37... Re8 {[%clk 0:01:41.3]} 38. Rfe2 {[%clk 0:00:30.5]} 38... Rfe7 {[%clk
0:01:38.3]} 39. Kf2 {[%clk 0:00:30]} 39... Re5 {[%clk 0:01:33.1]} 40. Re3 {[%clk
0:00:25.7]} 40... Kf7 {[%clk 0:01:32]} 41. Bd3 {[%clk 0:00:18.6]} 41... Ke7
{[%clk 0:01:28.3]} 42. R3e2 {[%clk 0:00:18.5]} 42... Kd6 {[%clk 0:01:25.9]} 43.
a5 {[%clk 0:00:17.9]} 43... Rb8 {[%clk 0:01:18]} 44. Rb1 {[%clk 0:00:16.7]}
44... Kc7 {[%clk 0:01:13.2]} 45. axb6+ {[%clk 0:00:16.9]} 45... axb6 {[%clk
0:01:10.3]} 46. Ra1 {[%clk 0:00:16.2]} 46... Ree8 {[%clk 0:01:08.8]} 47. Re3
{[%clk 0:00:15.4]} 47... Rb7 {[%clk 0:01:09.7]} 48. Rf3 {[%clk 0:00:15.4]} 48...
Rf8 {[%clk 0:01:07.9]} 49. e5 {[%clk 0:00:14.2]} 49... f5 {[%clk 0:01:04.7]} 50.
d6+ {[%clk 0:00:14.3]} 50... Kc6 {[%clk 0:00:58.2]} 51. Bc2 {[%clk 0:00:11.5]}
51... Re8 {[%clk 0:00:56.4]} 52. Ba4+ {[%clk 0:00:10.1]} 52... b5 {[%clk
0:00:55.3]} 53. Bxb5+ {[%clk 0:00:10.5]} 53... Rxb5 {[%clk 0:00:52.2]} 54. cxb5+
{[%clk 0:00:11.4]} 54... Kxb5 {[%clk 0:00:52.5]} 55. Re3 {[%clk 0:00:10.6]}
55... f4 {[%clk 0:00:51.3]} 56. Ree1 {[%clk 0:00:07.9]} 56... Kc6 {[%clk
0:00:48.8]} 57. Ra7 {[%clk 0:00:08.2]} 57... Re6 {[%clk 0:00:46.4]} 58. Rc7+
{[%clk 0:00:08.5]} 58... Kd5 {[%clk 0:00:46.7]} 59. Rxd7 {[%clk 0:00:09.1]}
59... c4 {[%clk 0:00:46.7]} 60. Re7 {[%clk 0:00:09.6]} 1-0

[Event "*** SCC Grand Prix: Titled Tuesday Blitz"]
[Site "Chess.com"]
[Date "2020.06.02"]
[Round "10"]
[White "Godzillator"]
[Black "GMTalks_Youtube"]
[Result "0-1"]
[WhiteElo "2468"]
[BlackElo "2655"]
[TimeControl "180+1"]
[EndTime "11:58:42 PDT"]
[Termination "GMTalks_Youtube won on time"]

1. d4 {[%clk 0:03:00.9]} 1... Nf6 {[%clk 0:02:59.2]} 2. c4 {[%clk 0:03:01]} 2...
e6 {[%clk 0:02:59.4]} 3. Nc3 {[%clk 0:03:01.3]} 3... Bb4 {[%clk 0:02:59.4]} 4.
Qc2 {[%clk 0:03:00.2]} 4... d6 {[%clk 0:02:58.8]} 5. Bg5 {[%clk 0:02:56.5]} 5...
Nbd7 {[%clk 0:02:58.1]} 6. Nf3 {[%clk 0:02:56.2]} 6... b6 {[%clk 0:02:55.2]} 7.
e3 {[%clk 0:02:50]} 7... Bb7 {[%clk 0:02:54.3]} 8. Be2 {[%clk 0:02:49.5]} 8...
h6 {[%clk 0:02:53.4]} 9. Bh4 {[%clk 0:02:49.4]} 9... g5 {[%clk 0:02:52.4]} 10.
Bg3 {[%clk 0:02:49.5]} 10... Ne4 {[%clk 0:02:51.9]} 11. Bd3 {[%clk 0:02:44.8]}
11... Bxc3+ {[%clk 0:02:50.9]} 12. bxc3 {[%clk 0:02:44.5]} 12... f5 {[%clk
0:02:43.8]} 13. Kf1 {[%clk 0:02:16.3]} 13... Ndf6 {[%clk 0:02:34.2]} 14. Nd2
{[%clk 0:02:13.1]} 14... O-O {[%clk 0:02:16.4]} 15. f3 {[%clk 0:02:08.5]} 15...
Nxg3+ {[%clk 0:02:12.3]} 16. hxg3 {[%clk 0:02:08.3]} 16... Kg7 {[%clk
0:02:11.4]} 17. Ke2 {[%clk 0:01:59]} 17... Qe8 {[%clk 0:02:04]} 18. Rh2 {[%clk
0:01:57.1]} 18... Nh5 {[%clk 0:01:55.2]} 19. Kf2 {[%clk 0:01:55.6]} 19... Nf6
{[%clk 0:01:42.9]} 20. Rah1 {[%clk 0:01:54.1]} 20... Rh8 {[%clk 0:01:41.4]} 21.
e4 {[%clk 0:01:50.1]} 21... fxe4 {[%clk 0:01:34.7]} 22. Nxe4 {[%clk 0:01:49.3]}
22... Qe7 {[%clk 0:01:19.7]} 23. Nxf6 {[%clk 0:01:44.3]} 23... Qxf6 {[%clk
0:01:19]} 24. Be4 {[%clk 0:01:44.5]} 24... c6 {[%clk 0:01:13]} 25. Re1 {[%clk
0:01:35]} 25... Rae8 {[%clk 0:01:07.6]} 26. a4 {[%clk 0:01:23.6]} 26... d5
{[%clk 0:01:05.3]} 27. Bd3 {[%clk 0:01:21.2]} 27... c5 {[%clk 0:01:04.2]} 28.
dxc5 {[%clk 0:01:14.7]} 28... bxc5 {[%clk 0:01:01.6]} 29. cxd5 {[%clk 0:01:14]}
29... exd5 {[%clk 0:01:00]} 30. Rhh1 {[%clk 0:01:07]} 30... c4 {[%clk
0:00:58.7]} 31. Bf5 {[%clk 0:01:04.7]} 31... Qb6+ {[%clk 0:00:57.6]} 32. Kf1
{[%clk 0:00:58.4]} 32... Rxe1+ {[%clk 0:00:54.7]} 33. Kxe1 {[%clk 0:00:58.7]}
33... Re8+ {[%clk 0:00:48.3]} 34. Kd1 {[%clk 0:00:55.2]} 34... d4 {[%clk
0:00:47.8]} 35. Re1 {[%clk 0:00:48.3]} 35... d3 {[%clk 0:00:46.4]} 36. Bxd3
{[%clk 0:00:21]} 36... cxd3 {[%clk 0:00:43.1]} 37. Qxd3 {[%clk 0:00:21.4]} 37...
Rd8 {[%clk 0:00:41.1]} 38. Re7+ {[%clk 0:00:21.3]} 38... Kf6 {[%clk 0:00:38.7]}
39. Rd7 {[%clk 0:00:21.7]} 39... Qb3+ {[%clk 0:00:34.8]} 40. Kc1 {[%clk
0:00:17.9]} 40... Qa3+ {[%clk 0:00:32.6]} 41. Kb1 {[%clk 0:00:17.6]} 41... Be4
{[%clk 0:00:20.9]} 42. fxe4 {[%clk 0:00:15.7]} 42... Rb8+ {[%clk 0:00:21.3]} 43.
Kc2 {[%clk 0:00:05.5]} 43... Qa2+ {[%clk 0:00:18.9]} 44. Kc1 {[%clk 0:00:04]}
44... Rb1+ {[%clk 0:00:19.2]} 45. Qxb1 {[%clk 0:00:03.5]} 45... Qa3+ {[%clk
0:00:15.8]} 46. Qb2 {[%clk 0:00:02.1]} 46... Qxa4 {[%clk 0:00:16.4]} 0-1

[Event "*** SCC Grand Prix: Titled Tuesday Blitz"]
[Site "Chess.com"]
[Date "2020.06.02"]
[Round "10"]
[White "profofchess"]
[Black "ChronicUnhappiness"]
[Result "1-0"]
[WhiteElo "2448"]
[BlackElo "2311"]
[TimeControl "180+1"]
[EndTime "11:58:46 PDT"]
[Termination "profofchess won on time"]

1. e4 {[%clk 0:03:00.9]} 1... d6 {[%clk 0:02:59]} 2. d4 {[%clk 0:03:00]} 2...
Nf6 {[%clk 0:02:59.1]} 3. Nc3 {[%clk 0:02:59.8]} 3... g6 {[%clk 0:02:59.4]} 4.
Bg5 {[%clk 0:02:58.5]} 4... Bg7 {[%clk 0:02:58.8]} 5. Qd2 {[%clk 0:02:58.8]}
5... h6 {[%clk 0:02:55.7]} 6. Bh4 {[%clk 0:02:57.7]} 6... c6 {[%clk 0:02:54.8]}
7. f4 {[%clk 0:02:48.6]} 7... Qc7 {[%clk 0:02:13.9]} 8. e5 {[%clk 0:02:39.4]}
8... Nd5 {[%clk 0:02:10.6]} 9. Ne4 {[%clk 0:02:25.6]} 9... Bf5 {[%clk
0:01:59.2]} 10. Bd3 {[%clk 0:02:24.6]} 10... Bxe4 {[%clk 0:01:56.2]} 11. Bxe4
{[%clk 0:02:24.2]} 11... e6 {[%clk 0:01:45]} 12. Nf3 {[%clk 0:02:17.8]} 12...
Ne7 {[%clk 0:01:38.8]} 13. O-O-O {[%clk 0:01:55.5]} 13... d5 {[%clk 0:01:37.8]}
14. Bd3 {[%clk 0:01:54.7]} 14... Nf5 {[%clk 0:01:03.5]} 15. Bf2 {[%clk
0:01:53.6]} 15... h5 {[%clk 0:01:03.5]} 16. g3 {[%clk 0:01:48.5]} 16... Nd7
{[%clk 0:00:55.1]} 17. h3 {[%clk 0:01:47.3]} 17... O-O-O {[%clk 0:00:47.6]} 18.
g4 {[%clk 0:01:45.7]} 18... Ne7 {[%clk 0:00:47.3]} 19. Ng5 {[%clk 0:01:43.2]}
19... Rdf8 {[%clk 0:00:47.1]} 20. Kb1 {[%clk 0:01:33.9]} 20... Bh6 {[%clk
0:00:46.4]} 21. gxh5 {[%clk 0:01:27.3]} 21... Bxg5 {[%clk 0:00:43.4]} 22. fxg5
{[%clk 0:01:25.9]} 22... Rxh5 {[%clk 0:00:43.4]} 23. h4 {[%clk 0:01:25.6]} 23...
Nf5 {[%clk 0:00:42.4]} 24. Be2 {[%clk 0:01:24.6]} 24... Rh7 {[%clk 0:00:41.1]}
25. h5 {[%clk 0:01:24.2]} 25... Rfh8 {[%clk 0:00:38]} 26. h6 {[%clk 0:01:14.6]}
26... c5 {[%clk 0:00:36.6]} 27. c3 {[%clk 0:01:12.3]} 27... c4 {[%clk
0:00:36.3]} 28. Kc2 {[%clk 0:01:01]} 28... b5 {[%clk 0:00:35.9]} 29. Rb1 {[%clk
0:01:00.5]} 29... Nb6 {[%clk 0:00:35.8]} 30. Kd1 {[%clk 0:01:00.1]} 30... Qe7
{[%clk 0:00:26.8]} 31. Ke1 {[%clk 0:00:56]} 31... Kb7 {[%clk 0:00:24.7]} 32. Kf1
{[%clk 0:00:54.6]} 32... a5 {[%clk 0:00:23.6]} 33. b3 {[%clk 0:00:53]} 33... Ka6
{[%clk 0:00:23.4]} 34. bxc4 {[%clk 0:00:45.6]} 34... Nxc4 {[%clk 0:00:16.6]} 35.
Bxc4 {[%clk 0:00:43.7]} 35... dxc4 {[%clk 0:00:17.5]} 36. a4 {[%clk 0:00:42.3]}
36... Rb8 {[%clk 0:00:11.1]} 37. d5 {[%clk 0:00:32.9]} 37... Qd7 {[%clk
0:00:09.3]} 38. d6 {[%clk 0:00:25]} 38... Qc6 {[%clk 0:00:07.5]} 39. Rh2 {[%clk
0:00:22.6]} 39... Rhh8 {[%clk 0:00:07.4]} 40. h7 {[%clk 0:00:21.3]} 40... Rb7
{[%clk 0:00:03]} 41. axb5+ {[%clk 0:00:17.2]} 41... Rxb5 {[%clk 0:00:02.5]} 42.
Ra1 {[%clk 0:00:16.9]} 42... Rb3 {[%clk 0:00:02]} 43. Qc2 {[%clk 0:00:11.6]}
43... Qb7 {[%clk 0:00:02]} 44. Qa2 {[%clk 0:00:09.9]} 44... Qb5 {[%clk
0:00:01.2]} 45. Bd4 {[%clk 0:00:07.1]} 1-0

[Event "*** SCC Grand Prix: Titled Tuesday Blitz"]
[Site "Chess.com"]
[Date "2020.06.02"]
[Round "10"]
[White "Mimsychess"]
[Black "WinstonSilvakov"]
[Result "1-0"]
[WhiteElo "2252"]
[BlackElo "2078"]
[TimeControl "180+1"]
[EndTime "11:58:46 PDT"]
[Termination "Mimsychess won by resignation"]

1. c4 {[%clk 0:03:00.9]} 1... Nf6 {[%clk 0:03:00.9]} 2. Nc3 {[%clk 0:03:00.5]}
2... e6 {[%clk 0:02:58.2]} 3. e4 {[%clk 0:02:59.9]} 3... d6 {[%clk 0:02:57]} 4.
d4 {[%clk 0:02:59.2]} 4... c5 {[%clk 0:02:57.3]} 5. dxc5 {[%clk 0:02:50.7]} 5...
Qa5 {[%clk 0:02:56.2]} 6. cxd6 {[%clk 0:02:09.6]} 6... Nxe4 {[%clk 0:02:54.7]}
7. Bd2 {[%clk 0:02:09.8]} 7... Nxc3 {[%clk 0:02:50.7]} 8. Bxc3 {[%clk
0:02:08.6]} 8... Qb6 {[%clk 0:02:41.4]} 9. Nf3 {[%clk 0:02:00.9]} 9... f6 {[%clk
0:02:32.7]} 10. Bd3 {[%clk 0:01:56.7]} 10... Bxd6 {[%clk 0:02:24.1]} 11. O-O
{[%clk 0:01:56]} 11... O-O {[%clk 0:02:14.1]} 12. b4 {[%clk 0:01:45.1]} 12...
Qc7 {[%clk 0:02:09.2]} 13. c5 {[%clk 0:01:40.6]} 13... Bf4 {[%clk 0:02:08.1]}
14. Qe2 {[%clk 0:01:34.4]} 14... Nc6 {[%clk 0:01:52.4]} 15. g3 {[%clk
0:01:27.5]} 15... Bh6 {[%clk 0:01:50.9]} 16. Qe4 {[%clk 0:01:11.5]} 16... g6
{[%clk 0:01:43.6]} 17. Bc4 {[%clk 0:01:08.8]} 17... Nd8 {[%clk 0:01:37.3]} 18.
Rad1 {[%clk 0:01:04.2]} 18... Kh8 {[%clk 0:01:31.9]} 19. Rd6 {[%clk 0:01:00.3]}
19... Bg7 {[%clk 0:01:24]} 20. Rfd1 {[%clk 0:00:56]} 20... Nf7 {[%clk 0:01:22]}
21. R6d2 {[%clk 0:00:39.8]} 21... Rb8 {[%clk 0:01:00.6]} 22. Bxe6 {[%clk
0:00:26.7]} 22... Bxe6 {[%clk 0:00:58.2]} 23. Qxe6 {[%clk 0:00:26]} 23... Rbe8
{[%clk 0:00:59.1]} 24. Qd7 {[%clk 0:00:24.6]} 24... Qb8 {[%clk 0:00:51.7]} 25.
Nh4 {[%clk 0:00:21.4]} 25... Rd8 {[%clk 0:00:44.1]} 26. Qh3 {[%clk 0:00:19.1]}
26... Kg8 {[%clk 0:00:41.1]} 27. Rd7 {[%clk 0:00:16.6]} 27... Rxd7 {[%clk
0:00:39.1]} 28. Rxd7 {[%clk 0:00:15.5]} 28... Qc8 {[%clk 0:00:38.9]} 29. Qe6
{[%clk 0:00:14.8]} 29... Qc6 {[%clk 0:00:31.7]} 30. Qxc6 {[%clk 0:00:13.2]}
30... bxc6 {[%clk 0:00:31]} 31. Rxa7 {[%clk 0:00:13.7]} 31... Nd8 {[%clk
0:00:26.8]} 32. Kg2 {[%clk 0:00:11.7]} 32... Ne6 {[%clk 0:00:26.7]} 33. Nf3
{[%clk 0:00:10.3]} 33... Rd8 {[%clk 0:00:23.1]} 34. Re7 {[%clk 0:00:09.9]} 34...
Nf8 {[%clk 0:00:15.3]} 35. Nd4 {[%clk 0:00:09.9]} 35... f5 {[%clk 0:00:14.8]}
36. Rxg7+ {[%clk 0:00:09.8]} 36... Kxg7 {[%clk 0:00:11.5]} 37. Ne6+ {[%clk
0:00:10.7]} 37... Kg8 {[%clk 0:00:08.4]} 38. Nxd8 {[%clk 0:00:11.6]} 38... Nd7
{[%clk 0:00:08.9]} 39. Nxc6 {[%clk 0:00:11.5]} 39... Nf8 {[%clk 0:00:07.6]} 40.
a4 {[%clk 0:00:11.1]} 40... Ne6 {[%clk 0:00:08.5]} 41. a5 {[%clk 0:00:11.4]}
41... Kf7 {[%clk 0:00:09.4]} 42. a6 {[%clk 0:00:11.6]} 42... Nc7 {[%clk
0:00:10.3]} 43. a7 {[%clk 0:00:11.8]} 43... Ke6 {[%clk 0:00:09.6]} 44. b5 {[%clk
0:00:12]} 44... Kd5 {[%clk 0:00:07.7]} 45. b6 {[%clk 0:00:12.2]} 45... Kxc6
{[%clk 0:00:06.8]} 46. bxc7 {[%clk 0:00:12.4]} 1-0